lending/lending_fUSD_20250122
["ID","MTS","AMOUNT","RATE_DAILY","PERIOD"]
[349976715,1737544266958,-1215.45,0.00021902,2]
[349976716,1737544266967,-1180.35,0.00021902,2]
[349976717,1737544266977,-1251.06,0.00021902,2]
[349976718,1737544266987,-544.82,0.00021902,2]
[349976719,1737544266996,-500.0,0.00021902,2]
[349976720,1737544267006,-1741.37,0.00021902,2]
[349976721,1737544267015,-1000.0,0.00021902,2]
[349976722,1737544267024,-841.18,0.00021902,2]
[349976723,1737544267034,-631.49,0.00021902,2]
[349976724,1737544267044,-555.75,0.00021902,2]
[349976725,1737544267053,-230.81,0.00021902,2]
[349976726,1737544267064,-500.0,0.00021902,2]
[349976727,1737544267073,-500.0,0.00021902,2]
[349976728,1737544267083,-667.15,0.00021902,2]
[349976729,1737544267092,-1820.67,0.00021902,2]
[349976730,1737544267102,-1458.6,0.00021902,2]
[349976731,1737544267111,-616.94352068,0.00021902,2]
[349976732,1737544267121,-595.65,0.00021902,2]
[349976733,1737544267133,-500.0,0.00021902,2]
[349976734,1737544267281,-500.0,0.00021902,2]
[349976735,1737544267292,-500.0,0.00021902,2]
[349976736,1737544267302,-500.0,0.00021902,2]
[349976737,1737544267311,-1077.95,0.00021902,2]
[349976738,1737544267320,-500.0,0.00021903,21]
[349976739,1737544267330,-500.0,0.00021903,2]
[349976740,1737544267339,-500.0,0.00021903,2]
[349976741,1737544267349,-500.0,0.00021903,2]
[349976742,1737544267358,-566.39,0.00021903,2]
[349976743,1737544267368,-500.0,0.00021903,2]
[349976744,1737544267378,-500.0,0.00021903,2]
[349976745,1737544267388,-523.7,0.00021903,2]
[349976746,1737544267397,-500.0,0.00021903,2]
[349976747,1737544267406,-500.0,0.00021903,2]
[349976748,1737544267416,-500.0,0.00021903,2]
[349976749,1737544267425,-500.0,0.00021903,2]
[349976750,1737544267434,-500.0,0.00021903,2]
[349976751,1737544267444,-502.03,0.00021903,2]
[349976752,1737544267453,-500.0,0.00021903,2]
[349976753,1737544267463,-607.34,0.00021903,2]
[349976754,1737544267472,-500.0,0.00021903,2]
[349976755,1737544267481,-705.95,0.00021903,2]
[349976756,1737544267491,-627.97,0.00021903,2]
[349976757,1737544267501,-500.0,0.00021903,2]
[349976758,1737544267510,-500.0,0.00021903,2]
[349976759,1737544267520,-707.28,0.00021903,2]
[349976760,1737544267529,-525.43,0.00021903,2]
[349976761,1737544267538,-150.0,0.00021903,2]
[349976762,1737544267548,-513.36,0.00021903,2]
[349976763,1737544267562,-788.76,0.00021903,2]
[349976764,1737544267571,-678.5,0.00021903,2]
[349976765,1737544267581,-500.0,0.00021903,2]
[349976766,1737544267591,-500.0,0.00021903,2]
[349976767,1737544267601,-500.0,0.00021903,2]
[349976768,1737544267610,-607.77,0.00021903,2]
[349976769,1737544267619,-500.0,0.00021903,2]
[349976770,1737544267629,-731.64,0.00021903,2]
[349976771,1737544267640,-500.0,0.00021903,2]
[349976772,1737544267650,-500.0,0.00021903,2]
[349976773,1737544267660,-755.79,0.00021903,2]
[349976774,1737544267669,-927.77,0.00021903,2]
[349976775,1737544267679,-500.0,0.00021903,2]
[349976776,1737544267689,-500.0,0.00021903,2]
[349976777,1737544267699,-500.0,0.00021903,2]
[349976778,1737544267708,-500.0,0.00021903,2]
[349976779,1737544267718,-961.27,0.00021903,2]
[349976780,1737544267727,-735.58,0.00021903,2]
[349976781,1737544267736,-795.2,0.00021903,2]
[349976782,1737544267745,-819.06,0.00021903,2]
[349976783,1737544267754,-500.0,0.00021903,2]
[349976784,1737544267763,-150.0,0.00021904,2]
[349976785,1737544267774,-150.0,0.00021906,2]
[349976786,1737544267782,-554.96,0.00021917,2]
[349976787,1737544267796,-554.96,0.00021917,2]
[349976788,1737544267806,-554.96,0.00021917,2]
[349976789,1737544267815,-554.96,0.00021917,2]
[349976790,1737544267824,-554.96,0.00021917,2]
[349976791,1737544267833,-554.96,0.00021917,2]
[349976792,1737544267842,-554.96,0.00021917,2]
[349976793,1737544267851,-554.96,0.00021917,2]
[349976794,1737544267860,-554.96,0.00021917,2]
[349976795,1737544267870,-500.0,0.00021917,3]
[349976796,1737544267879,-500.0,0.00021917,3]
[349976797,1737544267888,-500.0,0.00021917,3]
[349976798,1737544267898,-674.63,0.00021917,2]
[349976799,1737544267907,-674.63,0.00021917,2]
[349976800,1737544267915,-674.63,0.00021917,2]
[349976801,1737544267928,-674.63,0.00021917,2]
[349976802,1737544267937,-674.63,0.00021917,2]
[349976803,1737544267946,-674.63,0.00021917,2]
[349976804,1737544267955,-674.63,0.00021917,2]
[349976805,1737544267965,-674.63,0.00021917,2]
[349976806,1737544267973,-674.63,0.00021917,2]
[349976807,1737544267982,-1864.12,0.00021918,2]
[349976808,1737544267992,-150.0,0.00021918,2]
[349976809,1737544268002,-500.0,0.00021918,2]
[349976810,1737544268011,-150.0,0.00021921,2]
[349976811,1737544268019,-162.4279467,0.00021936,2]
[349976812,1737544268028,-500.0,0.00021936,2]
[349976813,1737544268037,-150.0,0.00021938,2]
[349976814,1737544268048,-500.0,0.00021945,2]
[349976815,1737544268057,-150.0,0.00021948,2]
[349976816,1737544268066,-150.0,0.00021953,2]
[349976817,1737544268075,-150.0,0.00021954,2]
[349976818,1737544268084,-758.11,0.00021959,7]
[349976819,1737544268093,-758.11,0.00021959,7]
[349976820,1737544268102,-150.0,0.00021962,2]
[349976821,1737544268111,-231.11515039,0.00021964,2]
[349976822,1737544268120,-150.0,0.00021965,2]
[349976823,1737544268130,-150.0,0.0002197,2]
[349976824,1737544268140,-3010.0,0.00021973,2]
[349976825,1737544268149,-1833.0,0.00021973,2]
[349976826,1737544268159,-530.79613968,0.00021973,2]
[349976827,1737544268168,-500.0,0.00021973,2]
[349976828,1737544268177,-89109.00954858,0.0002198,2]
[349976829,1737544268186,-7659.37593735,0.0002198,2]
[349976830,1737544268196,-150.0,0.00021984,4]
[349976831,1737544268205,-150.0,0.00021987,2]
[349976832,1737544268214,-270.70693079,0.00021988,2]
[349976833,1737544268223,-270.70693079,0.0002199,2]
[349976834,1737544268233,-91639.69980011,0.00021994,4]
[349976835,1737544268248,-12674.517128,0.00021994,4]
[349976836,1737544268264,-255.010114,0.00021745,2]
[349976837,1737544268273,-3065.189896,0.00021994,4]
[349976838,1737544268284,-737.81388373,0.00021994,4]
[349976839,1737544268304,-141.56429531,0.00021994,4]
[349976840,1737544268554,-167.226202,0.00019708,2]
[349976841,1737544268564,-500.0,0.0001971,2]
[349976842,1737544268573,-500.0,0.00019984,2]
[349976843,1737544268582,-500.0,0.00020257,2]
[349976844,1737544268591,-500.0,0.00020258,2]
[349976845,1737544268602,-167.226202,0.0002053,2]
[349976846,1737544268611,-212.42,0.00020531,2]
[349976847,1737544268620,-334.49,0.00020532,2]
[349976848,1737544268632,-167.226202,0.00021626,2]
[349976849,1737544268641,-2563.19105493,0.00021994,4]
[349976850,1737544268660,-500.0,0.00019709,2]
[349976851,1737544268669,-3867.42888762,0.00021994,4]
[349976852,1737544268678,-151.0,0.00021994,7]
[349976853,1737544268689,-3275.61668582,0.00021996,2]
[349976854,1737544415434,4675.13367271,0.00014781,7]
[349976855,1737544467417,163.94,0.00010137,2]
[349976857,1737544561365,518.15,0.00024,120]
[349976858,1737544985610,151.0,0.00024,120]
[349976863,1737545129534,62580.28230346,0.00011,2]
[349976864,1737545129560,44465.71520715,0.00011,2]
[349976870,1737545147139,-167.83,0.00015266,2]
[349976871,1737545147166,-163.94,0.00016813,2]
[349976872,1737545147189,-423.58588609,0.00018163,2]
[349976873,1737545149097,-139.56411391,0.00018163,2]
[349976874,1737545149120,-500.0,0.00018548,2]
[349976875,1737545149142,-303.75303927,0.00018968,2]
[349976878,1737545242094,-228.81752741,0.00015999,2]
[349976889,1737545311129,10838.34968825,9.828e-05,2]
[349976896,1737545345103,-3756.99897655,0.00015,2]
[349976897,1737545345124,-735.65696745,0.00016,2]
[349976898,1737545352103,-14235.36707981,0.00016,2]
[349976899,1737545352126,-500.0,0.00018548,2]
[349976900,1737545352147,-696.24696073,0.00018968,2]
[349976901,1737545352169,-250.0,0.00019012,2]
[349976902,1737545352190,-151.67272517,0.00019029,2]
[349976903,1737545352212,-14637.6,0.00019129,2]
[349976904,1737545352234,-91.11196564,0.00019145,2]
[349976905,1737545359122,-105.74803436,0.00019145,2]
[349976906,1737545359147,-174.02,0.0001915,2]
[349976907,1737545359173,-4259.54989628,0.00019172,2]
[349976908,1737545391547,186.15,0.00015306,2]
[349976920,1737545431654,-97.37010372,0.00019172,2]
[349976921,1737545431663,-669.68,0.00019315,2]
[349976922,1737545431672,-250.0,0.00019349,2]
[349976923,1737545431681,-172.89841052,0.00019609,2]
[349976924,1737545431690,-184.9601,0.00019609,2]
[349976925,1737545431699,-2010.1126,0.00019609,2]
[349976926,1737545431709,-1648.3095,0.0001961,2]
[349976927,1737545431718,-161.09,0.00019699,2]
[349976928,1737545431727,-300.0,0.00019707,2]
[349976929,1737545431736,-150.36285845,0.00019708,2]
[349976930,1737545431745,-285.7029558,0.00019708,2]
[349976931,1737545431771,-335.0090442,0.00019708,2]
[349976932,1737545431781,-500.0,0.00019708,2]
[349976933,1737545431790,-500.0,0.00019708,2]
[349976934,1737545431799,-500.0,0.00019708,2]
[349976935,1737545431809,-500.0,0.00019708,2]
[349976936,1737545431818,-500.0,0.00019708,2]
[349976937,1737545431827,-500.0,0.00019708,2]
[349976938,1737545431837,-172.02682698,0.00019708,2]
[349976939,1737545431846,-500.0,0.00019708,2]
[349976940,1737545431855,-500.0,0.00019708,2]
[349976941,1737545431865,-69.22179836,0.00019708,2]
[349976942,1737545431876,-430.77820164,0.00019708,2]
[349976943,1737545431886,-500.0,0.00019708,2]
[349976944,1737545431895,-325.82999925,0.00019708,2]
[349976945,1737545432016,-174.17000075,0.00019708,2]
[349976946,1737545432026,-500.0,0.00019708,2]
[349976947,1737545432035,-500.0,0.00019708,2]
[349976948,1737545432045,-500.0,0.00019708,2]
[349976949,1737545432054,-5.62999924,0.00019708,2]
[349976950,1737545432065,-494.37000076,0.00019708,2]
[349976951,1737545432075,-352.624129,0.00019708,2]
[349976952,1737545432084,-500.0,0.00019708,2]
[349976953,1737545432094,-500.0,0.00019708,2]
[349976954,1737545432103,-500.0,0.00019708,2]
[349976955,1737545432112,-589.394439,0.00019708,2]
[349976956,1737545432122,-541.61,0.00019708,2]
[349976957,1737545432132,-500.0,0.00019708,2]
[349976958,1737545432141,-500.0,0.00019708,2]
[349976959,1737545432151,-500.0,0.00019708,2]
[349976960,1737545432160,-500.0,0.00019708,2]
[349976961,1737545432169,-500.0,0.00019708,2]
[349976962,1737545432178,-529.66,0.00019708,2]
[349976963,1737545432188,-500.0,0.00019708,2]
[349976964,1737545432197,-500.0,0.00019708,2]
[349976965,1737545432207,-500.0,0.00019708,2]
[349976966,1737545432216,-597.84,0.00019708,2]
[349976967,1737545432226,-500.0,0.00019708,2]
[349976968,1737545432235,-500.0,0.00019708,2]
[349976969,1737545432244,-500.0,0.00019708,2]
[349976971,1737545432253,-500.0,0.00019708,2]
[349976973,1737545432263,-500.0,0.00019708,2]
[349976974,1737545432272,-500.0,0.00019708,2]
[349976976,1737545432281,-500.0,0.00019708,2]
[349976978,1737545432290,-500.0,0.00019708,2]
[349976980,1737545432299,-500.0,0.00019708,2]
[349976981,1737545432308,-500.0,0.00019708,2]
[349976982,1737545432318,-500.0,0.00019708,2]
[349976983,1737545432327,-500.0,0.00019708,2]
[349976984,1737545432336,-500.0,0.00019708,2]
[349976985,1737545432345,-500.0,0.00019708,2]
[349976986,1737545432354,-500.0,0.00019708,2]
[349976987,1737545432364,-500.0,0.00019708,2]
[349976988,1737545432373,-500.0,0.00019708,2]
[349976989,1737545432382,-500.0,0.00019708,2]
[349976990,1737545432391,-500.0,0.00019708,2]
[349976992,1737545432400,-500.0,0.00019708,2]
[349976994,1737545432409,-500.0,0.00019708,2]
[349976996,1737545432418,-176.13600899,0.00019708,2]
[349976997,1737545432427,-500.0,0.00019708,2]
[349976998,1737545432438,-500.0,0.00019708,2]
[349977000,1737545432447,-523.21324605,0.00019708,2]
[349977003,1737545432459,-286.48675395,0.00019708,2]
[349977004,1737545432469,-500.0,0.00019708,2]
[349977005,1737545432479,-598.77,0.00019708,2]
[349977006,1737545432489,-1167.96,0.00019708,2]
[349977007,1737545432498,-500.0,0.00019708,2]
[349977008,1737545432507,-723.78,0.00019708,2]
[349977009,1737545432516,-1408.84,0.00019708,2]
[349977010,1737545432525,-500.0,0.00019708,2]
[349977011,1737545432534,-500.0,0.00019708,2]
[349977012,1737545432543,-635.99,0.00019708,2]
[349977013,1737545432552,-1019.47,0.00019708,2]
[349977014,1737545432560,-953.63,0.00019708,2]
[349977015,1737545432570,-69.15876229,0.00019708,2]
[349977016,1737545432584,-94.28578871,0.00019708,2]
[349977017,1737545432593,-500.0,0.00019708,2]
[349977018,1737545432602,-78.01248855,0.00019708,2]
[349977019,1737545432613,-297.97996403,0.00019708,2]
[349977020,1737545432636,-124.00754742,0.00019708,2]
[349977021,1737545432645,-940.24,0.00019708,2]
[349977022,1737545432654,-607.1,0.00019708,2]
[349977023,1737545432665,-181.82,0.00019708,2]
[349977024,1737545432674,-500.0,0.00019708,2]
[349977025,1737545432683,-500.0,0.00019708,2]
[349977026,1737545432692,-397.0936537,0.00019708,2]
[349977027,1737545432701,-2292.13,0.00019708,2]
[349977028,1737545432711,-713.78,0.00019708,2]
[349977029,1737545432721,-984.48,0.00019708,2]
[349977030,1737545432730,-711.89,0.00019708,2]
[349977031,1737545432739,-500.0,0.00019708,2]
[349977032,1737545432748,-157.610869,0.00019708,2]
[349977033,1737545432757,-528.79129849,0.00019708,2]
[349977034,1737545432769,-224.15870151,0.00019708,2]
[349977035,1737545432777,-890.4,0.00019708,2]
[349977036,1737545432786,-558.59129849,0.00019708,2]
[349977038,1737545437489,-556.29870151,0.00019708,2]
[349977039,1737545437498,-831.65,0.00019708,2]
[349977040,1737545437507,-500.0,0.00019708,2]
[349977041,1737545437516,-1608.48,0.00019708,2]
[349977042,1737545437525,-1423.67,0.00019708,2]
[349977043,1737545437535,-662.85,0.00019708,2]
[349977044,1737545437544,-165.430026,0.00019708,2]
[349977045,1737545437554,-2548.59,0.00019708,2]
[349977046,1737545437563,-500.0,0.00019708,2]
[349977047,1737545437572,-500.0,0.00019708,2]
[349977048,1737545437581,-500.0,0.00019708,2]
[349977049,1737545437591,-648.19,0.00019708,2]
[349977050,1737545437600,-1389.26,0.00019708,2]
[349977051,1737545437609,-491.11,0.00019708,2]
[349977052,1737545437620,-836.08,0.00019708,2]
[349977053,1737545437630,-2140.6906302,0.00019708,2]
[349977054,1737545437642,-8.4993698,0.00019708,2]
[349977055,1737545437651,-1069.56,0.00019708,2]
[349977056,1737545437660,-550.24,0.00019708,2]
[349977057,1737545437670,-500.0,0.00019708,2]
[349977058,1737545437679,-551.6,0.00019708,2]
[349977059,1737545437689,-756.32,0.00019708,2]
[349977060,1737545437699,-500.0,0.00019708,2]
[349977061,1737545437708,-500.0,0.00019708,2]
[349977062,1737545437717,-500.0,0.00019708,2]
[349977063,1737545437727,-1543.48,0.00019708,2]
[349977064,1737545437737,-838.36,0.00019708,2]
[349977065,1737545437746,-500.0,0.00019708,2]
[349977066,1737545437756,-1233.47,0.00019708,2]
[349977067,1737545437766,-641.04,0.00019708,2]
[349977068,1737545437775,-631.8,0.00019708,2]
[349977069,1737545437784,-2181.61,0.00019708,2]
[349977070,1737545437794,-500.77,0.00019708,2]
[349977071,1737545437803,-631.01,0.00019708,2]
[349977072,1737545437812,-1372.31,0.00019708,2]
[349977073,1737545437821,-351.16209724,0.00019708,2]
[349977074,1737545437833,-237.60790276,0.00019708,2]
[349977075,1737545437842,-500.0,0.00019708,2]
[349977076,1737545437852,-500.0,0.00019708,2]
[349977077,1737545437861,-1212.34,0.00019708,2]
[349977078,1737545437871,-500.0,0.00019708,2]
[349977079,1737545437880,-680.7,0.00019708,2]
[349977080,1737545437889,-500.0,0.00019708,2]
[349977081,1737545437898,-500.0,0.00019708,2]
[349977082,1737545437907,-692.0,0.00019708,2]
[349977083,1737545437920,-953.16,0.00019708,2]
[349977084,1737545437929,-500.0,0.00019708,2]
[349977085,1737545437939,-2296.14,0.00019708,2]
[349977086,1737545437948,-500.0,0.00019708,2]
[349977087,1737545437960,-500.0,0.00019708,2]
[349977088,1737545437969,-1293.69,0.00019708,2]
[349977089,1737545437978,-1244.0,0.00019708,2]
[349977090,1737545437988,-500.0,0.00019708,2]
[349977091,1737545437998,-838.22,0.00019708,2]
[349977092,1737545438007,-500.0,0.00019708,2]
[349977093,1737545438019,-500.0,0.00019708,2]
[349977094,1737545438028,-500.0,0.00019708,2]
[349977095,1737545438038,-500.0,0.00019708,2]
[349977096,1737545438048,-500.0,0.00019708,2]
[349977097,1737545438058,-500.0,0.00019708,2]
[349977098,1737545438067,-500.0,0.00019708,2]
[349977099,1737545438076,-727.62,0.00019708,2]
[349977100,1737545438086,-500.0,0.00019708,2]
[349977101,1737545438095,-500.0,0.00019708,2]
[349977102,1737545438104,-500.0,0.00019708,2]
[349977103,1737545438114,-500.0,0.00019708,2]
[349977104,1737545438123,-500.0,0.00019708,2]
[349977105,1737545438132,-892.2,0.00019708,2]
[349977106,1737545438142,-1378.27,0.00019708,2]
[349977107,1737545438151,-500.0,0.00019708,2]
[349977108,1737545438161,-500.0,0.00019708,2]
[349977109,1737545438171,-820.65,0.00019708,2]
[349977110,1737545438182,-500.0,0.00019708,2]
[349977111,1737545438196,-500.0,0.00019708,2]
[349977112,1737545438206,-500.0,0.00019708,2]
[349977113,1737545438215,-797.75,0.00019708,2]
[349977114,1737545438225,-500.0,0.00019708,2]
[349977115,1737545438234,-1009.86,0.00019708,2]
[349977116,1737545438242,-500.0,0.00019708,2]
[349977117,1737545438251,-500.0,0.00019708,2]
[349977118,1737545438260,-500.0,0.00019708,2]
[349977119,1737545438268,-1037.16,0.00019708,2]
[349977120,1737545438277,-500.0,0.00019708,2]
[349977121,1737545438286,-500.0,0.00019708,2]
[349977122,1737545438295,-500.0,0.00019708,2]
[349977123,1737545438305,-1156.45,0.00019708,2]
[349977124,1737545438315,-1896.3,0.00019708,2]
[349977125,1737545438324,-500.0,0.00019708,2]
[349977126,1737545438334,-506.18569332,0.00019709,2]
[349977127,1737545438343,-503.04165342,0.00019709,2]
[349977128,1737545438353,-500.0,0.00019709,2]
[349977129,1737545438362,-500.0,0.00019709,2]
[349977130,1737545438372,-501.36737578,0.00019709,2]
[349977131,1737545438384,-500.0,0.00019709,2]
[349977132,1737545438394,-500.0,0.00019709,2]
[349977133,1737545438402,-500.0,0.00019709,2]
[349977134,1737545438411,-500.0,0.00019709,2]
[349977135,1737545438421,-598.56896618,0.00019709,2]
[349977136,1737545438430,-500.0,0.00019709,2]
[349977137,1737545438440,-500.0,0.00019709,2]
[349977138,1737545438449,-500.0,0.00019709,2]
[349977139,1737545438459,-248.81624937,0.00019709,2]
[349977140,1737545438468,-500.0,0.00019709,2]
[349977141,1737545438478,-500.0,0.00019709,2]
[349977142,1737545438488,-500.0,0.00019709,2]
[349977143,1737545438498,-500.0,0.00019709,2]
[349977144,1737545438507,-500.0,0.00019709,2]
[349977145,1737545438516,-500.0,0.00019709,2]
[349977146,1737545438525,-500.0,0.00019709,2]
[349977147,1737545438534,-500.0,0.00019709,2]
[349977148,1737545438545,-500.0,0.00019709,2]
[349977149,1737545438554,-500.0,0.00019709,2]
[349977150,1737545438563,-500.0,0.00019709,2]
[349977151,1737545438572,-500.0,0.00019709,2]
[349977152,1737545438582,-500.0,0.00019709,2]
[349977153,1737545438591,-500.0,0.00019709,2]
[349977154,1737545438600,-500.0,0.00019709,2]
[349977155,1737545438609,-500.0,0.00019709,2]
[349977156,1737545438618,-500.0,0.00019709,2]
[349977157,1737545438628,-500.0,0.00019709,2]
[349977158,1737545438637,-500.0,0.00019709,2]
[349977159,1737545438648,-174.14287517,0.00019709,2]
[349977160,1737545438694,-325.85712483,0.00019709,2]
[349977161,1737545438703,-500.0,0.00019709,2]
[349977162,1737545438711,-513.98,0.00019709,2]
[349977163,1737545438721,-500.0,0.00019709,2]
[349977164,1737545438730,-500.0,0.00019709,2]
[349977165,1737545438739,-500.0,0.00019709,2]
[349977166,1737545438748,-500.0,0.00019709,2]
[349977167,1737545438757,-500.0,0.00019709,2]
[349977168,1737545438766,-500.0,0.00019709,2]
[349977169,1737545438775,-500.0,0.00019709,2]
[349977170,1737545438785,-500.0,0.00019709,2]
[349977171,1737545438794,-500.0,0.00019709,2]
[349977172,1737545438803,-500.0,0.00019709,2]
[349977173,1737545438812,-500.0,0.00019709,2]
[349977174,1737545438822,-500.0,0.00019709,2]
[349977175,1737545438831,-500.0,0.00019709,2]
[349977176,1737545438841,-267.57208815,0.00019709,2]
[349977177,1737545438949,-232.42791185,0.00019709,2]
[349977178,1737545438958,-500.0,0.00019709,2]
[349977179,1737545438967,-500.0,0.00019709,2]
[349977180,1737545438977,-500.0,0.00019709,2]
[349977181,1737545438987,-500.0,0.00019709,2]
[349977182,1737545438997,-500.0,0.00019709,2]
[349977183,1737545439006,-500.0,0.00019709,2]
[349977184,1737545439015,-500.0,0.00019709,2]
[349977185,1737545439024,-500.0,0.00019709,2]
[349977186,1737545439034,-500.0,0.00019709,2]
[349977187,1737545439043,-602.04,0.00019709,2]
[349977188,1737545439052,-500.0,0.00019709,2]
[349977189,1737545439061,-500.0,0.00019709,2]
[349977190,1737545439071,-500.0,0.00019709,2]
[349977191,1737545439080,-500.0,0.00019709,2]
[349977192,1737545439090,-500.0,0.00019709,2]
[349977193,1737545439099,-666.21,0.00019709,2]
[349977194,1737545439109,-500.0,0.00019709,2]
[349977195,1737545439118,-710.76,0.00019709,2]
[349977196,1737545439128,-566.87,0.00019709,2]
[349977197,1737545439138,-500.0,0.00019709,2]
[349977198,1737545439148,-500.0,0.00019709,2]
[349977199,1737545439158,-500.0,0.00019709,2]
[349977200,1737545439167,-500.0,0.00019709,2]
[349977201,1737545439177,-500.0,0.00019709,2]
[349977202,1737545439188,-16501.94542196,0.00019709,2]
[349977203,1737545439200,-3548.93808439,0.00019709,2]
[349977208,1737545439551,-500.0,0.00019708,2]
[349977209,1737545439560,-1278.9874083,0.00019709,2]
[349977210,1737545439572,-1204.51437272,0.00019709,2]
[349977211,1737545439605,-4463.15286867,0.00019709,2]
[349977212,1737545439618,-4748.69384427,0.00019709,2]
[349977213,1737545439641,-85600.43557812,0.00019709,2]
[349977214,1737545439650,-500.0,0.0001971,2]
[349977215,1737545439659,-1485.36902273,0.00019882,2]
[349977216,1737545439668,-3392.17576843,0.000199,7]
[349977217,1737545439766,-783.988005,0.000199,7]
[349977218,1737545439778,-515.96,0.000199,7]
[349977219,1737545439790,-625.42636932,0.000199,7]
[349977220,1737545439801,-644.79999986,0.000199,7]
[349977221,1737545439977,-500.0,0.00019708,2]
[349977222,1737545439987,-1695.03854347,0.000199,7]
[349977223,1737545440762,150.0,0.00018,3]
[349977230,1737545442548,-2108.20858944,0.00019708,2]
[349977231,1737545442604,-511.55141056,0.00019708,2]
[349977232,1737545442613,-775.99858939,0.00019708,2]
[349977233,1737545442707,-817.1986,0.00019708,2]
[349977234,1737545442718,-14.14281061,0.00019708,2]
[349977235,1737545442727,-1525.92096806,0.000199,7]
[349977236,1737545442739,-8880.41721204,0.000199,7]
[349977237,1737545442748,-500.0,0.00019982,2]
[349977238,1737545442757,-500.0,0.00019982,2]
[349977239,1737545442766,-500.0,0.00019982,2]
[349977240,1737545442776,-500.0,0.00019982,2]
[349977241,1737545442784,-619.12535874,0.00019982,2]
[349977242,1737545442794,-500.0,0.00019982,2]
[349977243,1737545442803,-500.0,0.00019982,2]
[349977244,1737545442811,-500.0,0.00019982,2]
[349977245,1737545442820,-500.0,0.00019982,2]
[349977246,1737545442829,-277.52009315,0.00019982,2]
[349977247,1737545442838,-500.0,0.00019982,2]
[349977248,1737545442847,-352.624129,0.00019982,2]
[349977249,1737545442856,-500.0,0.00019982,2]
[349977250,1737545442865,-500.0,0.00019982,2]
[349977251,1737545442874,-589.394439,0.00019982,2]
[349977253,1737545442883,-541.61,0.00019982,2]
[349977255,1737545442892,-500.0,0.00019982,2]
[349977257,1737545442901,-500.0,0.00019982,2]
[349977259,1737545442910,-500.0,0.00019982,2]
[349977261,1737545442921,-500.0,0.00019982,2]
[349977263,1737545442930,-529.66,0.00019982,2]
[349977265,1737545442939,-500.0,0.00019982,2]
[349977266,1737545442949,-500.0,0.00019982,2]
[349977267,1737545442958,-597.84,0.00019982,2]
[349977268,1737545442967,-500.0,0.00019982,2]
[349977269,1737545442976,-500.0,0.00019982,2]
[349977270,1737545442985,-500.0,0.00019982,2]
[349977271,1737545442994,-500.0,0.00019982,2]
[349977272,1737545443002,-66.00362671,0.00019982,2]
[349977273,1737545443019,-433.99637329,0.00019982,2]
[349977274,1737545443027,-500.0,0.00019982,2]
[349977275,1737545443036,-500.0,0.00019982,2]
[349977276,1737545443045,-500.0,0.00019982,2]
[349977277,1737545443054,-500.0,0.00019982,2]
[349977278,1737545443063,-500.0,0.00019982,2]
[349977279,1737545443073,-500.0,0.00019982,2]
[349977280,1737545443082,-500.0,0.00019982,2]
[349977281,1737545443091,-500.0,0.00019982,2]
[349977282,1737545443100,-500.0,0.00019982,2]